[Event "EYCC O18-ch 2024"]
[Site "Prague"]
[Date "2024.08.23"]
[Round "2.9"]
[White "Zhukovskyi, Oleksandr"]
[Black "Garcia Fernandez, Victor"]
[Result "0-1"]
[ECO "B30"]
[WhiteElo "1867"]
[BlackElo "2313"]
[Annotator "ChessBase"]
[PlyCount "71"]
[EventDate "2024.08.19"]
[EventType "swiss"]
[EventCountry "CZE"]
[SourceTitle "playchess.com"]
[Source "ChessBase"]
[SourceQuality "1"]
[TimeControl "5400+30"]

1. e4 {[%emt 0:01:17]} c5 {[%emt 0:00:20]} 2. Nf3 {[%emt 0:00:05]} Nc6 {[%emt 0:00:15]} 3. Bb5 {[%emt 0:00:25]} d6 {[%emt 0:00:35]} 4. O-O {[%emt 0:00:46]} Bd7 {[%emt 0:00:05]} 5. Re1 a6 {[%emt 0:00:10]} 6. Bf1 {[%emt 0:01:35]} Bg4 {[%emt 0:00:09]} 7. h3 {[%emt 0:05:49]} Bxf3 {[%emt 0:00:25]} 8. Qxf3 {[%emt 0:00:20]} Nf6 {[%emt 0:00:12]} 9. d3 {[%emt 0:11:16]} e6 {[%emt 0:02:01]} 10. c3 {[%emt 0:10:41]} Be7 {[%emt 0:01:03]} 11. Qd1 {[%emt 0:02:38]} O-O {[%emt 0:14:16]} 12. Na3 {[%emt 0:12:58]} d5 {[%emt 0:14:34]} 13. e5 {[%emt 0:01:31]} Nd7 {[%emt 0:00:07]} 14. d4 {[%emt 0:03:39]} cxd4 {[%emt 0:14:43]} 15. cxd4 {[%emt 0:00:02]} Bb4 {[%emt 0:04:27]} 16. Bd2 {[%emt 0:09:37]} Qa5 {[%emt 0:09:56]} 17. Bxb4 {[%emt 0:00:12]} Qxb4 {[%emt 0:00:02]} 18. Nc2 {[%emt 0:00:23]} Qxb2 {[%emt 0:00:07]} 19. Rb1 {[%emt 0:01:22]} Qxa2 {[%emt 0:00:06]} 20. Rxb7 {[%emt 0:00:02]} Rfd8 {[%emt 0:00:21]} 21. Re3 {[%emt 0:01:59]} Rab8 {[%emt 0:02:08]} 22. Rxb8 {[%emt 0:19:30]} Ndxb8 {[%emt 0:01:13]} 23. Rg3 {[%emt 0:08:14]} Ne7 {[%emt 0:01:09]} 24. Ne3 {[%emt 0:05:37]} Ng6 {[%emt 0:08:52]} 25. h4 {[%emt 0:01:07]} Nxh4 {[%emt 0:02:21]} 26. Qh5 {[%emt 0:01:11]} Ng6 {[%emt 0:00:07]} 27. Rh3 {[%emt 0:00:39]} h6 {[%emt 0:02:02]} 28. Rg3 {[%emt 0:00:47]} Qb1 {[%emt 0:00:48]} 29. f4 {[%emt 0:00:46]} Nd7 {[%emt 0:10:55]} 30. f5 {[%emt 0:00:18]} exf5 {[%emt 0:00:01]} 31. e6 {[%emt 0:00:43]} f4 {[%emt 0:00:48]} 32. exd7 {[%emt 0:00:29]} fxg3 {[%emt 0:00:18]} 33. Qxd5 {[%emt 0:00:16]} Qe1 {[%emt 0:00:48]} 34. Qe4 {[%emt 0:00:43]} Rxd7 {[%emt 0:00:55]} 35. Qe8+ {[%emt 0:00:32]} Nf8 {[%emt 0:00:05]} 36. Qxf8+ {[%emt 0:00:06]} 0-1

[Event "EYCC O18-ch 2024"]
[Site "Prague"]
[Date "2024.08.23"]
[Round "2.10"]
[White "Pyrih, Roman"]
[Black "Paseka, Matyas"]
[Result "1/2-1/2"]
[ECO "B90"]
[WhiteElo "2422"]
[BlackElo "2281"]
[Annotator "ChessBase"]
[PlyCount "124"]
[EventDate "2024.08.19"]
[EventType "swiss"]
[EventCountry "CZE"]
[SourceTitle "playchess.com"]
[Source "ChessBase"]
[SourceQuality "1"]
[TimeControl "5400+30"]

1. e4 {[%emt 0:00:19]} c5 {[%emt 0:00:09]} 2. Nf3 {[%emt 0:00:04]} d6 {[%emt 0:00:04]} 3. d4 {[%emt 0:00:04]} cxd4 {[%emt 0:00:06]} 4. Nxd4 {[%emt 0:00:02]} Nf6 {[%emt 0:00:08]} 5. Nc3 {[%emt 0:00:02]} a6 {[%emt 0:00:05]} 6. a3 {[%emt 0:00:03]} e5 {[%emt 0:10:31]} 7. Nf5 {[%emt 0:00:49]} d5 {[%emt 0:00:54]} 8. Bg5 {[%emt 0:00:04]} d4 {[%emt 0:00:41]} 9. Bxf6 {[%emt 0:00:02]} gxf6 {[%emt 0:00:10]} 10. Nb1 {[%emt 0:00:03]} Bxf5 {[%emt 0:07:58]} 11. exf5 {[%emt 0:00:00]} Qd5 {[%emt 0:04:04]} 12. Qh5 {[%emt 0:00:02]} Nd7 {[%emt 0:02:41]} 13. Nd2 {[%emt 0:01:26]} Rc8 {[%emt 0:06:25]} 14. b4 {[%emt 0:03:16]} Rxc2 {[%emt 0:13:05]} 15. Bd3 {[%emt 0:00:11]} Rc3 {[%emt 0:00:08]} 16. Be4 {[%emt 0:03:54]} Qb5 {[%emt 0:00:11]} 17. a4 {[%emt 0:01:16]} Qxb4 {[%emt 0:02:05]} 18. Rb1 {[%emt 0:01:01]} Qc5 {[%emt 0:14:11]} 19. O-O {[%emt 0:00:22]} b6 {[%emt 0:00:22]} 20. Bb7 {[%emt 0:00:52]} Qa5 {[%emt 0:00:26]} 21. Nb3 {[%emt 0:01:40]} Qxa4 {[%emt 0:19:35]} 22. Bd5 {[%emt 0:00:03]} Be7 {[%emt 0:00:08]} 23. Qxf7+ {[%emt 0:03:58]} Kd8 {[%emt 0:00:03]} 24. Ra1 {[%emt 0:00:48]} Qb5 {[%emt 0:00:11]} 25. Rfc1 {[%emt 0:00:16]} Rf8 {[%emt 0:11:54]} 26. Qe6 {[%emt 0:00:03]} Nc5 {[%emt 0:00:14]} 27. Nxc5 {[%emt 0:00:20]} Qxc5 {[%emt 0:01:01]} 28. Rxc3 {[%emt 0:00:28]} dxc3 {[%emt 0:01:22]} 29. Bc6 {[%emt 0:08:26]} Qd6 {[%emt 0:00:04]} 30. Qc4 {[%emt 0:00:01]} Kc7 {[%emt 0:01:43]} 31. Be4+ {[%emt 0:02:06]} Qc5 {[%emt 0:00:03]} 32. Qxa6 {[%emt 0:00:01]} Rb8 {[%emt 0:01:46]} 33. Qa7+ {[%emt 0:00:56]} Kc8 {[%emt 0:00:07]} 34. Rd1 {[%emt 0:00:11]} Bd6 {[%emt 0:01:59]} 35. Qf7 {[%emt 0:00:03]} b5 {[%emt 0:01:05]} 36. Bd5 {[%emt 0:01:53]} Be7 {[%emt 0:01:46]} 37. Be4 {[%emt 0:03:39]} Kc7 {[%emt 0:00:10]} 38. Rd5 {[%emt 0:02:20]} Qb4 {[%emt 0:00:24]} 39. h4 {[%emt 0:06:27]} Rd8 {[%emt 0:00:36]} 40. Rxd8 {[%emt 0:00:04]} Kxd8 {[%emt 0:00:05]} 41. Qd5+ {[%emt 0:00:03]} Bd6 {[%emt 0:01:38]} 42. Qa8+ {[%emt 0:00:09]} Ke7 {[%emt 0:00:20]} 43. Qb7+ {[%emt 0:00:06]} Kd8 {[%emt 0:00:43]} 44. Qa8+ {[%emt 0:01:55]} Kc7 {[%emt 0:00:32]} 45. Qa7+ {[%emt 0:02:12]} Kd8 {[%emt 0:00:17]} 46. Qa8+ {[%emt 0:00:48]} Kc7 {[%emt 0:00:04]} 47. Kh2 {[%emt 0:10:18]} Qd4 {[%emt 0:00:12]} 48. Qa5+ {[%emt 0:01:55]} Kc8 {[%emt 0:01:06]} 49. Qa8+ {[%emt 0:04:05]} Kc7 {[%emt 0:00:14]} 50. Kh3 {[%emt 0:03:50]} Kb6 {[%emt 0:00:29]} 51. f3 {[%emt 0:02:43]} Kc5 {[%emt 0:00:35]} 52. Qa3+ {[%emt 0:02:13]} Kb6 {[%emt 0:00:04]} 53. Qa8 {[%emt 0:00:17]} Kc5 {[%emt 0:00:14]} 54. Qa7+ {[%emt 0:06:16]} Kb4 {[%emt 0:00:11]} 55. Qxh7 {[%emt 0:00:02]} Qd1 {[%emt 0:01:59]} 56. Qd7 {[%emt 0:01:44]} Qh1+ {[%emt 0:00:25]} 57. Kg3 {[%emt 0:00:03]} Bc5 {[%emt 0:00:07]} 58. Bd3 {[%emt 0:00:22]} Be3 {[%emt 0:00:57]} 59. Qxb5+ {[%emt 0:00:46]} Ka3 {[%emt 0:00:11]} 60. Bc2 {[%emt 0:01:40]} Bf4+ {[%emt 0:00:28]} 61. Kf2 {[%emt 0:00:01]} Be3+ {[%emt 0:00:54]} 62. Kg3 {[%emt 0:04:34]} Bf4+ {[%emt 0:00:04]} 1/2-1/2

[Event "EYCC O18-ch 2024"]
[Site "Prague"]
[Date "2024.08.23"]
[Round "2.10"]
[White "Andries, Alf"]
[Black "Karolczuk, Iwo"]
[Result "0-1"]
[ECO "B90"]
[WhiteElo "2024"]
[BlackElo "2356"]
[Annotator "RC"]
[PlyCount "68"]
[EventDate "2024.08.19"]
[EventType "swiss"]
[EventCountry "CZE"]
[SourceTitle "playchess.com"]
[Source "ChessBase"]
[SourceQuality "1"]
[TimeControl "5400+30"]

1. e4 {[%emt 0:00:01]} c5 {[%emt 0:00:27]} 2. Nf3 {[%emt 0:00:07]} d6 {[%emt 0:00:21]} 3. d4 {[%emt 0:00:07]} cxd4 {[%emt 0:00:13]} 4. Nxd4 {[%emt 0:00:05]} Nf6 {[%emt 0:00:13]} 5. Nc3 {[%emt 0:00:05]} a6 {[%emt 0:00:07]} 6. h3 {[%emt 0:00:03]} g6 {[%emt 0:01:04]} 7. Be3 {[%emt 0:00:05]} Bg7 {[%emt 0:02:20]} 8. g4 {[%emt 0:00:06]} h5 {[%emt 0:01:11]} 9. g5 {[%emt 0:00:06]} Nfd7 {[%emt 0:01:20]} 10. Qd2 {[%emt 0:00:33]} Nc6 {[%emt 0:01:50]} 11. f4 O-O 12. O-O-O {[%emt 0:03:18]} Nxd4 {[%emt 0:11:23]} 13. Bxd4 {[%emt 0:00:10]} b5 {[%emt 0:02:32]} 14. Bxg7 {[%emt 0:03:48]} Kxg7 {[%emt 0:00:11]} 15. Qd4+ {[%emt 0:00:04]} Kg8 {[%emt 0:01:12]} 16. Bd3 {[%emt 0:01:36]} Bb7 {[%emt 0:03:02]} 17. Rhf1 {[%emt 0:04:28]} Rc8 {[%emt 0:05:21]} 18. Nd5 {[%emt 0:09:02]} e5 {[%emt 0:03:07]} 19. Qe3 {[%emt 0:05:17]} Bxd5 {[%emt 0:04:12]} 20. exd5 {[%emt 0:00:02]} exf4 {[%emt 0:01:58]} 21. Qxf4 {[%emt 0:00:41]} Ne5 {[%emt 0:03:58]} 22. Be2 {[%emt 0:01:58]} Qb6 23. Qd4 {[%emt 0:00:52]} Qc7 {[%emt 0:02:09]} 24. Rd2 {[%emt 0:00:30]} Rfe8 {[%emt 0:02:28]} 25. Rf6 {[%emt 0:04:01]} Nd7 {[%emt 0:07:14]} 26. Rf4 {[%emt 0:06:41]} Nc5 {[%emt 0:01:09]} 27. Kb1 {[%emt 0:01:15]} b4 {[%emt 0:07:50]} 28. b3 {[%emt 0:06:52]} a5 {[%emt 0:01:22]} 29. Rh4 {[%emt 0:00:11]} Re5 {[%emt 0:03:13]} 30. Rf4 {[%emt 0:04:15]} Qe7 {[%emt 0:01:02]} 31. Bd3 Qxg5 {[%emt 0:05:59]} 32. h4 {[%emt 0:00:46]} Nxd3 {[%emt 0:05:45]} 33. Rxd3 {[%emt 0:00:50]} Re1+ {[%emt 0:02:06]} 34. Kb2 {[%emt 0:00:01]} Qg2 {[%emt 0:00:22]} 0-1

[Event "EYCC O18-ch 2024"]
[Site "Prague"]
[Date "2024.08.23"]
[Round "2.11"]
[White "Olenik Campa, Rudi"]
[Black "Zajakins, Artjoms"]
[Result "0-1"]
[ECO "C10"]
[WhiteElo "2335"]
[BlackElo "1981"]
[Annotator "RC"]
[PlyCount "50"]
[EventDate "2024.08.19"]
[EventType "swiss"]
[EventCountry "CZE"]
[SourceTitle "playchess.com"]
[Source "ChessBase"]
[SourceQuality "1"]
[TimeControl "5400+30"]

1. e4 {[%emt 0:00:05]} e6 {[%emt 0:00:12]} 2. d4 {[%emt 0:00:03]} d5 {[%emt 0:00:05]} 3. Nc3 {[%emt 0:00:05]} dxe4 {[%emt 0:00:10]} 4. Nxe4 {[%emt 0:00:04]} Nd7 {[%emt 0:00:08]} 5. Nf3 {[%emt 0:00:03]} Ngf6 {[%emt 0:00:13]} 6. Nxf6+ {[%emt 0:00:03]} Nxf6 {[%emt 0:00:11]} 7. c3 {[%emt 0:00:31]} Be7 {[%emt 0:00:20]} 8. Bf4 {[%emt 0:00:24]} O-O {[%emt 0:00:48]} 9. Bd3 {[%emt 0:01:34]} b6 {[%emt 0:00:41]} 10. Qe2 {[%emt 0:03:06]} Bb7 {[%emt 0:00:34]} 11. O-O-O {[%emt 0:01:02]} Qc8 {[%emt 0:14:35]} 12. h4 {[%emt 0:02:48]} c5 {[%emt 0:01:39]} 13. Kb1 {[%emt 0:00:08]} a5 {[%emt 0:17:13]} 14. h5 {[%emt 0:05:26]} a4 {[%emt 0:05:53]} 15. h6 {[%emt 0:05:07]} g6 {[%emt 0:00:51]} 16. Bg5 {[%emt 0:10:27]} Qc7 {[%emt 0:14:21]} 17. c4 {[%emt 0:11:07]} Bd8 {[%emt 0:06:05]} 18. Bc2 {[%emt 0:10:32]} a3 {[%emt 0:05:25]} 19. dxc5 {[%emt 0:02:24]} Nd7 {[%emt 0:09:45]} 20. Nd4 {[%emt 0:31:29]} Bxg5 {[%emt 0:05:40]} 21. Nb5 {[%emt 0:09:02]} Qe5 {[%emt 0:02:49]} 22. Qxe5 {[%emt 0:00:03]} Nxe5 {[%emt 0:00:09]} 23. Nd6 {[%emt 0:00:00]} Bc6 {[%emt 0:02:08]} 24. b4 {[%emt 0:00:17]} bxc5 {[%emt 0:01:34]} 25. b5 {[%emt 0:00:02]} Rab8 {[%emt 0:01:06]} 0-1

[Event "EYCC O18-ch 2024"]
[Site "Prague"]
[Date "2024.08.23"]
[Round "2.11"]
[White "Kutowski, Marcel"]
[Black "Vergara Anton, Diego"]
[Result "1-0"]
[ECO "C02"]
[WhiteElo "2263"]
[BlackElo "2416"]
[Annotator "ChessBase"]
[PlyCount "67"]
[EventDate "2024.08.19"]
[EventType "swiss"]
[EventCountry "CZE"]
[SourceTitle "playchess.com"]
[Source "ChessBase"]
[SourceQuality "1"]
[TimeControl "5400+30"]

1. e4 {[%emt 0:00:05]} e6 {[%emt 0:00:11]} 2. d4 {[%emt 0:00:08]} d5 {[%emt 0:00:02]} 3. e5 {[%emt 0:00:06]} c5 {[%emt 0:00:10]} 4. c3 {[%emt 0:00:06]} Nc6 {[%emt 0:00:07]} 5. Nf3 {[%emt 0:00:07]} Bd7 {[%emt 0:00:19]} 6. Be2 {[%emt 0:01:46]} Nge7 {[%emt 0:02:33]} 7. Na3 {[%emt 0:03:31]} cxd4 {[%emt 0:02:40]} 8. cxd4 {[%emt 0:00:12]} Nf5 {[%emt 0:00:47]} 9. Nc2 {[%emt 0:00:56]} Qb6 {[%emt 0:02:08]} 10. O-O {[%emt 0:05:03]} Rc8 {[%emt 0:05:19]} 11. Bd3 {[%emt 0:07:15]} Nb4 {[%emt 0:06:23]} 12. Nxb4 {[%emt 0:09:19]} Bxb4 {[%emt 0:07:02]} 13. Qb3 {[%emt 0:04:21]} O-O {[%emt 0:06:26]} 14. a3 {[%emt 0:27:21]} Bc5 {[%emt 0:02:00]} 15. Qd1 {[%emt 0:03:27]} Nxd4 {[%emt 0:15:49]} 16. Bxh7+ {[%emt 0:00:52]} Kxh7 {[%emt 0:00:42]} 17. Ng5+ {[%emt 0:00:14]} Kg6 {[%emt 0:00:48]} 18. h4 {[%emt 0:14:06]} Rh8 {[%emt 0:03:42]} 19. Qg4 {[%emt 0:01:15]} f5 {[%emt 0:04:46]} 20. exf6 {[%emt 0:00:50]} Kxf6 {[%emt 0:02:31]} 21. b4 {[%emt 0:03:12]} Qb5 {[%emt 0:04:51]} 22. Qf4+ {[%emt 0:08:05]} Nf5 {[%emt 0:06:43]} 23. Bb2+ {[%emt 0:01:50]} Ke7 {[%emt 0:02:22]} 24. Rfe1 {[%emt 0:01:26]} Rcf8 {[%emt 0:01:34]} 25. bxc5 {[%emt 0:03:11]} Qxb2 {[%emt 0:00:26]} 26. Nxe6 {[%emt 0:00:43]} Bxe6 {[%emt 0:05:48]} 27. Rab1 {[%emt 0:00:04]} Qxb1 {[%emt 0:03:11]} 28. Rxb1 {[%emt 0:00:01]} Rb8 {[%emt 0:02:06]} 29. Re1 {[%emt 0:00:28]} Kd7 {[%emt 0:01:11]} 30. g4 {[%emt 0:00:36]} Rbe8 {[%emt 0:04:09]} 31. gxf5 {[%emt 0:00:33]} Bf7 {[%emt 0:00:05]} 32. Rb1 {[%emt 0:00:41]} Kc8 {[%emt 0:00:13]} 33. c6 {[%emt 0:00:43]} b6 {[%emt 0:00:05]} 34. Qd6 {[%emt 0:01:15]} 1-0

[Event "EYCC O18-ch 2024"]
[Site "Prague"]
[Date "2024.08.23"]
[Round "2.12"]
[White "Hrbek, Stepan"]
[Black "Szikszai, Bertalan"]
[Result "1-0"]
[ECO "B51"]
[WhiteElo "2414"]
[BlackElo "2278"]
[Annotator "ChessBase"]
[PlyCount "91"]
[EventDate "2024.08.19"]
[EventType "swiss"]
[EventCountry "CZE"]
[SourceTitle "playchess.com"]
[Source "ChessBase"]
[SourceQuality "1"]
[TimeControl "5400+30"]

1. e4 {[%emt 0:00:09]} c5 {[%emt 0:00:24]} 2. Nf3 {[%emt 0:00:18]} d6 {[%emt 0:00:24]} 3. Bb5+ {[%emt 0:00:20]} Nd7 {[%emt 0:00:26]} 4. O-O {[%emt 0:00:15]} a6 {[%emt 0:00:20]} 5. Be2 {[%emt 0:00:14]} Ngf6 {[%emt 0:00:24]} 6. d3 {[%emt 0:00:11]} e6 {[%emt 0:00:39]} 7. a4 {[%emt 0:00:20]} b6 {[%emt 0:00:31]} 8. Nfd2 {[%emt 0:00:31]} Bb7 {[%emt 0:01:38]} 9. f4 {[%emt 0:01:11]} Be7 {[%emt 0:01:21]} 10. Bf3 {[%emt 0:00:17]} Qc7 {[%emt 0:02:29]} 11. Qe2 {[%emt 0:00:39]} Rc8 {[%emt 0:06:02]} 12. Nc3 {[%emt 0:05:42]} O-O {[%emt 0:04:16]} 13. g4 {[%emt 0:03:13]} Nb8 {[%emt 0:01:55]} 14. g5 {[%emt 0:05:10]} Nfd7 15. Nc4 {[%emt 0:01:56]} Nc6 {[%emt 0:05:13]} 16. Qg2 {[%emt 0:03:02]} Nd4 17. Bg4 b5 {[%emt 0:05:48]} 18. Ne3 {[%emt 0:07:46]} b4 {[%emt 0:14:22]} 19. Ne2 {[%emt 0:02:23]} d5 {[%emt 0:01:56]} 20. exd5 {[%emt 0:19:13]} Nb6 {[%emt 0:00:58]} 21. c4 {[%emt 0:00:19]} bxc3 {[%emt 0:01:57]} 22. Nxc3 {[%emt 0:00:14]} Rcd8 {[%emt 0:00:56]} 23. f5 {[%emt 0:15:35]} Bxg5 {[%emt 0:17:41]} 24. fxe6 {[%emt 0:01:33]} fxe6 {[%emt 0:00:38]} 25. a5 {[%emt 0:14:24]} Bxe3+ {[%emt 0:04:55]} 26. Bxe3 {[%emt 0:00:01]} Rxf1+ {[%emt 0:03:04]} 27. Rxf1 {[%emt 0:05:35]} Nxd5 {[%emt 0:00:07]} 28. Bxd4 {[%emt 0:00:06]} Nxc3 {[%emt 0:17:49]} 29. Bxe6+ {[%emt 0:00:37]} Kh8 {[%emt 0:00:03]} 30. Qxg7+ {[%emt 0:00:43]} Qxg7+ {[%emt 0:00:07]} 31. Bxg7+ {[%emt 0:00:05]} Kxg7 {[%emt 0:00:05]} 32. bxc3 {[%emt 0:03:40]} Bd5 {[%emt 0:00:53]} 33. Rf7+ {[%emt 0:00:38]} Kh8 {[%emt 0:06:01]} 34. Rd7 {[%emt 0:02:15]} Rxd7 {[%emt 0:00:55]} 35. Bxd7 {[%emt 0:00:03]} Bb7 {[%emt 0:01:24]} 36. Kf2 {[%emt 0:00:54]} Kg7 {[%emt 0:00:05]} 37. Ke3 {[%emt 0:00:05]} Kf6 {[%emt 0:00:04]} 38. d4 {[%emt 0:00:13]} c4 {[%emt 0:02:51]} 39. Bg4 {[%emt 0:00:51]} Bc6 {[%emt 0:00:40]} 40. Kf4 {[%emt 0:01:13]} Bb7 {[%emt 0:00:31]} 41. Be2 {[%emt 0:00:11]} Bd5 {[%emt 0:00:05]} 42. Bf3 {[%emt 0:00:07]} Bxf3 {[%emt 0:00:33]} 43. Kxf3 {[%emt 0:00:05]} Kf5 {[%emt 0:00:04]} 44. Ke3 {[%emt 0:01:01]} h6 {[%emt 0:00:13]} 45. Kf3 {[%emt 0:00:14]} h5 {[%emt 0:00:39]} 46. h4 {[%emt 0:00:11]} 1-0

[Event "EYCC O18-ch 2024"]
[Site "Prague"]
[Date "2024.08.23"]
[Round "2.12"]
[White "Zadrapa, Jakub"]
[Black "Baranciuc, Alexandr"]
[Result "0-1"]
[ECO "C60"]
[WhiteElo "1999"]
[BlackElo "2332"]
[Annotator "RC"]
[PlyCount "56"]
[EventDate "2024.08.19"]
[EventType "swiss"]
[EventCountry "CZE"]
[SourceTitle "playchess.com"]
[Source "ChessBase"]
[SourceQuality "1"]
[TimeControl "5400+30"]

1. e4 {[%emt 0:00:03]} e5 {[%emt 0:00:09]} 2. Nf3 {[%emt 0:00:10]} Nc6 {[%emt 0:00:08]} 3. Bb5 {[%emt 0:00:09]} g6 {[%emt 0:00:07]} 4. O-O {[%emt 0:00:38]} Bg7 {[%emt 0:00:07]} 5. c3 {[%emt 0:05:54]} a6 {[%emt 0:01:38]} 6. Ba4 {[%emt 0:01:59]} Nge7 {[%emt 0:00:12]} 7. Re1 {[%emt 0:01:46]} O-O {[%emt 0:00:18]} 8. d4 {[%emt 0:03:20]} exd4 {[%emt 0:01:31]} 9. cxd4 {[%emt 0:00:26]} b5 {[%emt 0:00:06]} 10. Bc2 {[%emt 0:05:28]} d5 {[%emt 0:07:13]} 11. exd5 {[%emt 0:08:43]} Nxd5 {[%emt 0:00:59]} 12. Nc3 {[%emt 0:02:57]} Nxc3 {[%emt 0:15:26]} 13. bxc3 {[%emt 0:03:46]} Bb7 {[%emt 0:00:10]} 14. Rb1 {[%emt 0:05:25]} Re8 {[%emt 0:12:02]} 15. a4 {[%emt 0:09:37]} Rxe1+ {[%emt 0:01:01]} 16. Qxe1 {[%emt 0:01:58]} Na7 {[%emt 0:09:48]} 17. Be4 {[%emt 0:20:29]} Bxe4 {[%emt 0:01:22]} 18. Qxe4 {[%emt 0:00:11]} bxa4 {[%emt 0:01:08]} 19. Bg5 {[%emt 0:03:28]} Qe8 {[%emt 0:01:12]} 20. Ne5 {[%emt 0:03:17]} Nb5 {[%emt 0:02:48]} 21. Qf3 {[%emt 0:01:43]} Nd6 {[%emt 0:11:35]} 22. g3 {[%emt 0:06:29]} Rb8 {[%emt 0:01:17]} 23. Re1 {[%emt 0:02:08]} a3 {[%emt 0:03:10]} 24. Ra1 {[%emt 0:03:27]} Bxe5 {[%emt 0:03:52]} 25. dxe5 Qxe5 {[%emt 0:00:01]} 26. Bf4 {[%emt 0:06:06]} Qf5 {[%emt 0:01:14]} 27. Rxa3 {[%emt 0:03:41]} g5 {[%emt 0:00:25]} 28. Qc6 {[%emt 0:00:39]} gxf4 {[%emt 0:00:16]} 0-1

[Event "EYCC O18-ch 2024"]
[Site "Prague"]
[Date "2024.08.23"]
[Round "2.13"]
[White "Loftgaard, Mikkel Vinh"]
[Black "Pidluznij, Gleb"]
[Result "0-1"]
[ECO "C44"]
[WhiteElo "2227"]
[BlackElo "2414"]
[Annotator "ChessBase"]
[PlyCount "92"]
[EventDate "2024.08.19"]
[EventType "swiss"]
[EventCountry "CZE"]
[SourceTitle "playchess.com"]
[Source "ChessBase"]
[SourceQuality "1"]
[TimeControl "5400+30"]

1. e4 {[%emt 0:00:02]} e5 {[%emt 0:00:11]} 2. Nf3 {[%emt 0:00:02]} Nc6 {[%emt 0:00:17]} 3. d4 {[%emt 0:00:06]} exd4 {[%emt 0:00:18]} 4. Nxd4 {[%emt 0:00:05]} Qf6 {[%emt 0:01:39]} 5. Nxc6 {[%emt 0:00:12]} Bc5 {[%emt 0:06:58]} 6. Qf3 {[%emt 0:01:45]} Qxf3 {[%emt 0:00:40]} 7. gxf3 {[%emt 0:01:59]} bxc6 {[%emt 0:00:28]} 8. Be3 {[%emt 0:00:13]} Bxe3 {[%emt 0:00:46]} 9. fxe3 {[%emt 0:00:57]} d6 {[%emt 0:01:43]} 10. Nd2 {[%emt 0:00:30]} Nf6 {[%emt 0:00:30]} 11. Rg1 {[%emt 0:00:30]} g6 {[%emt 0:00:30]} 12. Rg5 {[%emt 0:00:30]} a5 {[%emt 0:10:55]} 13. Nc4 {[%emt 0:13:04]} d5 {[%emt 0:00:42]} 14. exd5 {[%emt 0:04:16]} cxd5 {[%emt 0:00:29]} 15. Nd2 {[%emt 0:03:09]} h6 {[%emt 0:00:52]} 16. Rg1 {[%emt 0:01:09]} O-O {[%emt 0:01:51]} 17. Nb3 {[%emt 0:07:04]} a4 {[%emt 0:02:13]} 18. Nc5 {[%emt 0:02:22]} Ra5 {[%emt 0:00:12]} 19. b4 {[%emt 0:03:01]} axb3 {[%emt 0:00:09]} 20. Nxb3 {[%emt 0:00:02]} Ra3 {[%emt 0:00:22]} 21. Kd2 {[%emt 0:00:46]} Bd7 {[%emt 0:01:54]} 22. Kc3 {[%emt 0:03:49]} Rfa8 {[%emt 0:01:15]} 23. Kb2 {[%emt 0:01:45]} c5 {[%emt 0:00:22]} 24. Nxc5 {[%emt 0:04:25]} Rxe3 {[%emt 0:04:23]} 25. Bd3 {[%emt 0:10:27]} Ra5 26. Nb3 {[%emt 0:01:30]} Ra4 {[%emt 0:01:33]} 27. Nc5 {[%emt 0:05:22]} Rb4+ {[%emt 0:08:52]} 28. Kc3 Rf4 29. Rgf1 {[%emt 0:06:03]} Bh3 {[%emt 0:03:29]} 30. Kd2 {[%emt 0:01:15]} d4 {[%emt 0:01:12]} 31. Rfe1 {[%emt 0:01:47]} Rfxf3 {[%emt 0:00:21]} 32. Rxe3 {[%emt 0:00:42]} dxe3+ {[%emt 0:00:16]} 33. Kc3 {[%emt 0:09:09]} Ng4 {[%emt 0:19:34]} 34. a4 Ne5 35. Be4 {[%emt 0:03:25]} Rf1 {[%emt 0:01:01]} 36. Rxf1 {[%emt 0:00:23]} Bxf1 {[%emt 0:00:30]} 37. a5 {[%emt 0:01:20]} e2 38. Kd2 {[%emt 0:00:42]} Nc4+ {[%emt 0:00:39]} 39. Ke1 {[%emt 0:00:05]} Nxa5 {[%emt 0:00:08]} 40. Bd5 {[%emt 0:01:00]} Kf8 {[%emt 0:02:31]} 41. Nd3 {[%emt 0:10:06]} Ke7 {[%emt 0:01:46]} 42. c4 {[%emt 0:02:17]} Nb3 {[%emt 0:01:41]} 43. c5 {[%emt 0:00:44]} Nd4 {[%emt 0:00:12]} 44. Kd2 {[%emt 0:00:45]} f5 {[%emt 0:03:04]} 45. Kc3 {[%emt 0:01:11]} Ne6 {[%emt 0:01:12]} 46. c6 {[%emt 0:02:24]} Nf4 0-1